bitfinex-derivatives/quotes_ETHF0:USTF0_20241105
["timestamp","ask_amount","ask_price","bid_price","bid_amount"]
[1730819948196,40.8,2451.5,2451.2,0.40806]
[1730819948501,40.8,2451.5,2451.1,3.2078]
[1730819948693,0.40804,2451.4,2451.2,0.40806]
[1730819948897,40.8,2451.5,2451.1,3.2078]
[1730819949095,40.8,2451.5,2451.3,0.40803]
[1730819949300,41.20802,2451.5,2451.4,3.2078]
[1730819949796,0.40798,2451.7,2451.4,3.2078]
[1730819949995,2.724,2451.8,2451.6,0.40799]
[1730819949996,0.40796,2451.8,2451.6,0.40799]
[1730819950298,2.5858,2452.1,2451.7,0.40796]
[1730819950299,0.40795,2451.9,2451.7,0.40796]
[1730819950504,2.5858,2452.1,2451.8,3.2078]
[1730819950695,2.5858,2452.1,2452.0,0.40793]
[1730819950898,40.8,2452.3,2452.2,0.40789]
[1730819951096,3.2078,2452.4,2451.8,7.12643466]
[1730819951396,3.61566,2452.4,2452.2,0.40788]
[1730819951597,40.8,2452.8,2452.1,3.2078]
[1730819951906,0.40783,2452.6,2452.1,3.2078]
[1730819952109,0.40783,2452.6,2452.4,0.40786]
[1730819952404,0.40785,2452.5,2452.3,0.40787]
[1730819952600,0.40782,2452.7,2452.1,3.2078]
[1730819952807,0.40783,2452.6,2452.4,0.40786]
[1730819953104,40.8,2452.8,2452.1,3.2078]
[1730819953401,0.40784,2452.6,2452.3,0.40787]
[1730819953704,40.8,2452.8,2452.1,3.2078]
[1730819953999,2.6557,2452.9,2452.5,3.2078]
[1730819954204,2.6557,2452.9,2451.8,5.49736858]
[1730819954205,1.06106457,2453.2,2452.8,3.2078]
[1730819954609,0.40775,2453.1,2452.9,0.40777]
[1730819955107,0.40775,2453.1,2452.8,0.40778]
[1730819955405,1.06106457,2453.2,2452.5,8.6577]
[1730819955606,1.46880457,2453.2,2452.9,0.40777]
[1730819955809,1.46880457,2453.2,2453.0,0.40776]
[1730819956100,1.46880457,2453.2,2452.9,0.40778]
[1730819956303,0.40776,2453.0,2452.8,3.61559]
[1730819956902,1.58535779,2453.3,2452.8,3.2078]
[1730819957100,0.40777,2453.0,2452.8,3.61559]
[1730819957902,1.58535779,2453.3,2452.8,3.2078]
[1730819958200,45.15938779,2453.4,2452.8,3.2078]
[1730819958407,0.40774,2453.2,2453.0,0.40776]
[1730819958605,0.40772,2453.3,2453.1,0.40774]
[1730819959003,0.40775,2453.1,2452.9,0.40777]
[1730819959209,0.40776,2453.0,2452.8,3.61558]
[1730819959410,4.79315779,2453.3,2452.8,3.2078]
[1730819959411,0.40778,2452.9,2452.8,3.2078]
[1730819959809,0.4078,2452.8,2452.6,0.40782]
[1730819960307,0.40783,2452.6,2452.4,0.40786]
[1730819960807,0.40785,2452.5,2452.2,3.61569]
[1730819961198,4.22723,2453.0,2451.9,3.2078]
[1730819961199,3.2078,2452.7,2451.9,3.2078]
[1730819961401,0.40793,2452.1,2451.9,3.2078]
[1730819961807,44.8784,2452.1,2451.5,8.89093466]
[1730819962104,40.8,2452.1,2451.3,0.19635616]
[1730819962309,40.8,2452.1,2451.6,0.40799]
[1730819962310,1.99329779,2452.0,2451.6,0.40799]
[1730819962610,0.40794,2452.0,2451.7,3.2078]
[1730819963005,40.8,2452.1,2451.5,4.32663466]
[1730819963205,40.8,2452.1,2451.2,3.91863466]
[1730819963206,0.40802,2451.5,2451.2,3.91863466]
[1730819963406,0.40803,2451.4,2451.1,9.12177]
[1730819963611,1.58535779,2451.8,2451.1,2.7457]
[1730819963812,0.40802,2451.5,2451.1,0.40807]
[1730819964107,1.58535779,2451.7,2451.0,4.32672466]
[1730819964108,0.40803,2451.4,2451.0,4.32672466]
[1730819964310,0.40809,2451.0,2450.8,0.19157403]
[1730819964515,3.6901896,2451.6,2450.8,0.40812]
[1730819964807,0.40803,2451.4,2451.0,0.40809]
[1730819965410,1.58535779,2451.6,2450.9,3.6159]
[1730819965607,0.40807,2451.2,2450.9,3.6159]
[1730819965813,1.58535779,2451.5,2451.0,0.40808]
[1730819966313,1.58535779,2451.5,2450.9,3.2078]
[1730819966512,0.40809,2451.0,2450.9,3.2078]
[1730819966719,0.40812,2450.9,2450.7,2.89772177]
[1730819966906,0.40809,2451.0,2450.7,2.89772177]
[1730819967112,0.40809,2451.0,2450.7,3.30586177]
[1730819967308,4.79315779,2451.2,2450.7,3.30586177]
[1730819967309,0.40811,2450.9,2450.7,3.30586177]
[1730819967615,0.4081,2451.0,2450.8,0.40813]
[1730819967807,0.40809,2451.1,2450.8,0.40812]
[1730819968011,1.58535779,2451.3,2451.1,0.40808]
[1730819968212,40.8,2451.2,2451.1,0.40807]
[1730819968412,1.58535779,2451.5,2451.1,1.0202]
[1730819968625,1.58535779,2451.5,2451.4,0.40803]
[1730819969017,1.58535779,2451.5,2451.3,7.12643466]
[1730819969219,0.40802,2451.5,2451.3,3.2078]
[1730819969422,0.40801,2451.5,2451.3,3.2078]
[1730819969812,0.40802,2451.5,2451.3,3.2078]
[1730819970014,1.99334779,2451.7,2451.4,3.91863466]
[1730819970220,1.58535779,2451.8,2451.6,0.40799]
[1730819970413,1.58535779,2451.9,2451.4,3.91863466]
[1730819970619,0.40799,2451.7,2451.4,4.32666466]
[1730819971416,1.58535779,2451.9,2451.4,3.91863466]
[1730819971616,0.40797,2451.8,2451.5,0.408]
[1730819971814,1.58535779,2451.9,2451.6,0.40799]
[1730819972016,0.40794,2451.9,2451.6,0.40799]
[1730819972416,0.40794,2451.9,2451.4,3.91863466]
[1730819972617,0.40794,2451.9,2451.5,0.408]
[1730819972821,0.40794,2451.9,2451.6,0.40799]
[1730819973017,1.58535779,2452.0,2451.4,3.91863466]
[1730819973319,1.58535779,2452.0,2451.7,3.91863466]
[1730819973722,1.58535779,2452.1,2451.7,3.91863466]
[1730819973915,4.79304779,2452.3,2452.0,0.40793]
[1730819974423,1.58535779,2452.2,2452.0,0.40791]
[1730819974614,0.40789,2452.2,2451.9,3.2078]
[1730819974809,0.40793,2452.0,2451.9,3.2078]
[1730819975014,6.4899896,2452.3,2451.9,3.2078]
[1730819975218,6.4899896,2452.3,2451.7,3.91863466]
[1730819975219,1.58535779,2452.1,2451.7,3.91863466]
[1730819975719,1.99325779,2452.2,2452.0,0.40793]
[1730819975917,1.58535779,2452.1,2451.7,3.91863466]
[1730819976222,1.58535779,2452.1,2451.9,0.40793]
[1730819976522,0.40791,2452.1,2451.7,3.91863466]
[1730819976820,0.40793,2452.0,2451.8,0.40795]
[1730819977023,4.90463181,2452.3,2451.7,3.91863466]
[1730819977024,0.40795,2451.9,2451.7,3.91863466]
[1730819977421,0.40795,2451.9,2451.7,4.32661466]
[1730819977613,1.58535779,2452.0,2451.8,0.40796]
[1730819977817,1.58535779,2452.1,2451.9,0.40794]
[1730819978117,1.58535779,2452.4,2452.2,0.40789]
[1730819978421,1.58535779,2452.4,2452.3,8.40411466]
[1730819978620,0.02898,2452.7,2452.3,7.99623466]
[1730819978826,0.02898,2452.7,2452.6,0.40783]
[1730819979125,0.02898,2452.7,2452.5,0.40784]
[1730819979314,0.40783,2452.6,2452.3,0.40786]
[1730819979516,0.40783,2452.6,2452.3,0.40787]
[1730819979716,0.02898,2452.7,2452.2,3.2078]
[1730819979717,0.40786,2452.5,2452.2,3.61569]
[1730819980218,1.58535779,2452.6,2452.0,2.6938]
[1730819980527,0.40793,2452.0,2451.9,3.2078]
[1730819981424,1.58535779,2452.2,2451.9,3.2078]
[1730819981425,4.28775779,2452.2,2451.9,3.2078]
[1730819981718,4.28775779,2452.2,2452.0,0.40791]
[1730819981719,3.1103,2452.2,2452.0,0.40791]
[1730819982020,4.28775779,2452.2,2451.9,3.2078]
[1730819982214,2.7024,2452.2,2452.0,0.40792]
[1730819982632,2.7024,2452.2,2451.9,3.2078]
[1730819982919,1.58535779,2452.3,2452.1,0.40789]
[1730819983130,1.99319779,2452.5,2452.3,0.40788]
[1730819983317,1.99319779,2452.5,2452.1,3.91863466]
[1730819983318,1.58535779,2452.5,2452.1,3.91863466]
[1730819983518,1.99320779,2452.5,2452.3,0.40787]
[1730819983714,1.99321779,2452.5,2452.3,0.40788]
[1730819983928,2.13381181,2452.7,2452.2,3.2078]
[1730819983929,1.58535779,2452.6,2452.2,3.2078]
[1730819984122,2.54163181,2452.7,2452.5,0.40784]
[1730819984123,2.02215779,2452.7,2452.5,0.40784]
[1730819984317,0.40785,2452.5,2452.3,0.40786]
[1730819984521,1.61433779,2452.7,2452.2,3.2078]
[1730819984922,0.40789,2452.3,2452.1,0.4079]
[1730819985126,0.40794,2451.9,2451.8,3.2078]
[1730819985317,1.58535779,2452.2,2451.5,9.47543466]
[1730819985528,0.40796,2451.8,2451.6,0.40798]
[1730819985826,40.8,2452.0,2451.6,3.2078]
[1730819986022,42.38535779,2452.0,2451.6,3.2078]
[1730819986219,42.38535779,2452.0,2451.8,3.91863466]
[1730819986421,0.40796,2451.8,2451.6,7.53442466]
[1730819986830,42.38535779,2452.0,2451.6,7.53442466]
[1730819987329,0.40795,2451.9,2451.7,0.40797]
[1730819987622,0.40795,2451.9,2451.6,7.12643466]
[1730819987623,0.40801,2451.6,2451.3,3.91863466]
[1730819987925,0.40801,2451.6,2451.3,4.32667466]
[1730819988528,0.40799,2451.7,2451.3,3.91863466]
[1730819988826,0.40797,2451.8,2451.5,3.61581]
[1730819989031,0.40798,2451.7,2451.5,3.2078]
[1730819989434,1.58535779,2451.9,2451.5,3.2078]
[1730819989634,1.58535779,2451.9,2451.6,3.91863466]
[1730819989933,0.40794,2451.9,2451.6,3.91863466]
[1730819990125,0.40794,2451.9,2451.6,4.32662466]
[1730819990524,0.40796,2451.8,2451.6,3.91863466]
[1730819990734,0.40798,2451.7,2451.5,3.2078]
[1730819990924,0.40799,2451.6,2451.5,3.2078]
[1730819991529,0.40799,2451.7,2451.5,3.2078]
[1730819991828,0.40799,2451.6,2451.5,3.2078]
[1730819992526,0.40804,2451.4,2451.2,3.2078]
[1730819992721,0.40804,2451.3,2451.2,3.2078]
[1730819992920,0.40803,2451.4,2451.2,3.61585]
[1730819993122,0.40803,2451.4,2451.2,3.2078]
[1730819993333,1.58535779,2451.6,2451.2,3.2078]
[1730819993530,0.40804,2451.3,2451.2,3.2078]
[1730819993730,1.58535779,2451.5,2450.9,8.525]
[1730819993928,0.40809,2451.1,2450.9,3.61591]
[1730819994231,1.58535779,2451.2,2450.6,3.2078]
[1730819994427,1.58535779,2451.2,2450.6,7.12643466]
[1730819994626,1.58535779,2451.2,2450.7,0.40813]
[1730819994627,0.4081,2451.0,2450.7,0.40813]
[1730819994825,0.40808,2451.1,2450.6,7.53459466]
[1730819995029,0.40811,2450.9,2450.6,7.53459466]
[1730819995335,0.40813,2450.8,2450.6,7.53459466]
[1730819995530,0.40814,2450.7,2450.6,3.2078]
[1730819995927,0.40819,2450.4,2450.3,3.2078]
[1730819996128,0.40818,2450.5,2450.3,3.2078]
[1730819996434,0.40816,2450.6,2450.3,3.2078]
[1730819996635,0.40814,2450.7,2450.3,3.2078]
[1730819996835,0.40818,2450.5,2450.3,3.2078]
[1730819997339,43.4354,2450.8,2450.0,7.12643466]
[1730819997729,0.40822,2450.3,2450.0,7.53468466]
[1730819997934,43.4354,2450.8,2450.1,0.40824]
[1730819998238,0.40825,2450.1,2449.8,0.40828]
[1730819998431,4.22817,2450.7,2450.0,3.2078]
[1730819998640,0.40824,2450.2,2450.0,3.2078]
[1730819999133,0.40823,2450.2,2450.0,3.2078]
[1730819999327,5.81352779,2450.7,2450.0,3.2078]
[1730819999728,0.40823,2450.2,2450.0,3.2078]
[1730820000235,5.81352779,2450.7,2450.0,3.2078]
[1730820000236,4.79315779,2450.7,2450.0,3.2078]
[1730820000433,1.99350779,2450.7,2450.4,0.40819]
[1730820000633,1.58535779,2450.7,2450.5,3.91863466]
[1730820000837,1.58535779,2450.7,2450.4,2.6242]
[1730820001137,0.40819,2450.4,2450.3,3.2078]
[1730820001326,5.7972,2451.1,2450.0,3.2078]
[1730820001327,5.8605,2450.6,2450.0,3.2078]
[1730820001525,0.40824,2450.1,2450.0,3.2078]
[1730820001730,4.22845,2450.1,2449.4,3.2078]
[1730820001930,4.22845,2450.1,2449.1,7.12643466]
[1730820001931,3.2078,2449.8,2449.1,7.12643466]
[1730820002132,2.8457,2449.7,2449.1,7.12643466]
[1730820002327,0.40828,2449.9,2449.5,0.40834]
[1730820002633,2.8457,2450.3,2449.7,7.12643466]
[1730820002832,3.2078,2450.4,2449.6,4.0824]
[1730820002833,11.4285,2451.1,2450.0,7.12643466]
[1730820003037,0.40817,2450.6,2450.3,3.2078]
[1730820003236,11.4285,2451.1,2450.3,3.2078]
[1730820003531,0.40817,2450.6,2450.3,3.2078]
[1730820003734,0.40817,2450.6,2450.3,7.12643466]
[1730820003735,1.59747844,2450.6,2450.3,7.12643466]
[1730820003933,1.59747844,2450.6,2450.4,0.40818]
[1730820004127,1.59747844,2450.6,2450.3,3.2078]
[1730820004332,2.00564844,2450.6,2450.2,3.61602]
[1730820004734,0.40819,2450.5,2450.2,3.2078]
[1730820005240,0.40818,2450.5,2450.2,7.53465466]
[1730820005434,1.59747844,2450.6,2450.2,7.12643466]
[1730820005733,1.59747844,2450.6,2450.2,3.2078]
[1730820005932,1.59747844,2450.6,2450.1,3.2078]
[1730820006239,0.40818,2450.5,2450.2,0.40822]
[1730820006437,1.59747844,2450.6,2450.1,7.12643466]
[1730820006638,0.40818,2450.5,2450.2,0.40821]
[1730820006837,1.59747844,2450.6,2450.1,7.12643466]
[1730820007041,1.59747844,2450.6,2450.5,0.40818]
[1730820008437,1.59747844,2450.6,2450.5,2.99458]
[1730820008634,2.12997126,2451.0,2450.5,6.6672]
[1730820008635,1.59747844,2451.0,2450.5,6.6672]
[1730820008831,1.59747844,2451.0,2450.5,2.5864]
[1730820009028,0.40813,2450.8,2450.5,2.99457]
[1730820009332,0.40812,2450.9,2450.6,0.40816]
[1730820009734,1.59747844,2451.0,2450.7,0.40814]
[1730820009933,45.60527844,2451.1,2450.7,3.2078]
[1730820010136,3.61588,2451.1,2450.8,0.40811]
[1730820010337,3.2078,2451.1,2450.9,0.4081]
[1730820010644,3.61588,2451.1,2450.8,0.40812]
[1730820010831,0.4081,2451.0,2450.8,0.40812]
[1730820011032,0.40813,2450.8,2450.7,3.2078]
[1730820011236,0.40817,2450.6,2450.3,3.616]
[1730820011641,2.61771844,2451.0,2450.3,3.616]
[1730820011642,0.40814,2450.8,2450.4,0.40818]
[1730820011937,0.40817,2450.6,2450.3,7.53463466]
[1730820012442,7.59857844,2451.1,2450.3,7.12643466]
[1730820012643,0.40817,2450.6,2450.3,7.12643466]
[1730820012944,0.40813,2450.8,2450.5,0.40817]
[1730820013134,0.40813,2450.8,2450.6,3.2078]
[1730820013543,2.7933,2451.1,2450.6,3.2078]
[1730820013741,0.40814,2450.7,2450.6,3.2078]
[1730820014342,4.39077844,2451.1,2450.6,3.2078]
[1730820014537,0.40812,2450.9,2450.7,0.40814]
[1730820014836,0.40812,2450.9,2450.6,3.2078]
[1730820014837,44.97017844,2451.2,2450.6,7.12643466]
[1730820015036,0.4081,2451.0,2450.6,7.12643466]
[1730820015239,40.8,2451.2,2450.9,3.2078]
[1730820015537,0.03574,2451.3,2451.2,0.40806]
[1730820015738,0.03574,2451.3,2451.2,3.2078]
[1730820016043,0.44378,2451.3,2451.2,3.2078]
[1730820016238,4.11494,2451.3,2450.9,3.2078]
[1730820016440,0.40809,2451.0,2450.9,3.2078]
[1730820016837,4.48809,2451.0,2450.9,3.2078]
[1730820017337,2.5969,2451.2,2450.6,7.12643466]
[1730820017540,0.03574,2451.3,2451.0,0.40809]
[1730820017541,0.44379,2451.3,2451.0,0.40809]
[1730820017738,0.44379,2451.3,2451.1,0.40807]
[1730820017941,0.03574,2451.3,2451.2,3.61586]
[1730820018140,0.03574,2451.3,2451.2,16.00086]
[1730820018739,40.8,2451.7,2451.5,0.408]
[1730820019040,40.8,2451.7,2451.2,8.7079]
[1730820019240,0.40803,2451.4,2451.2,3.2078]
[1730820019643,2.7331,2451.6,2450.6,7.12643466]
[1730820019644,4.0792,2451.3,2450.6,7.12643466]
[1730820019839,1.59747844,2451.4,2450.6,7.12643466]
[1730820020039,1.59747844,2451.5,2450.9,4.32673466]
[1730820020241,0.40809,2451.1,2450.9,7.12643466]
[1730820020845,0.40809,2451.0,2450.9,7.12643466]
[1730820021042,0.40808,2451.1,2450.9,7.12643466]
[1730820021244,1.59747844,2451.4,2450.9,7.12643466]
[1730820021561,1.59747844,2451.4,2450.4,5.5345]
[1730820021562,3.2078,2451.2,2450.6,7.12643466]
[1730820021845,1.59747844,2451.3,2450.6,7.12643466]
[1730820022045,0.40807,2451.2,2450.9,7.12643466]
[1730820022245,4.80527844,2451.5,2450.9,7.12643466]
[1730820022441,3.61582,2451.5,2451.2,3.91863466]
[1730820022637,3.2078,2451.5,2451.3,0.40804]
[1730820023043,45.17757844,2451.7,2451.2,3.91863466]
[1730820023044,40.8,2451.7,2451.2,7.12643466]
[1730820023244,1.59747844,2451.8,2451.5,7.12643466]
[1730820023543,1.59747844,2451.8,2451.6,0.40799]
[1730820023742,40.8,2452.1,2451.6,2.7164]
[1730820023944,40.8,2452.1,2451.7,0.40797]
[1730820024242,41.20792,2452.1,2451.7,0.40797]
[1730820024438,1.59747844,2452.2,2452.0,0.40793]
[1730820024750,1.59747844,2452.2,2451.8,3.91863466]
[1730820024751,0.40792,2452.1,2451.8,7.53438466]
[1730820025445,0.40791,2452.1,2451.8,7.53438466]
[1730820025648,3.2078,2452.2,2451.5,3.2078]
[1730820025854,3.2078,2452.2,2451.0,2.7793]
[1730820025855,3.2078,2451.7,2451.0,2.7793]
[1730820026148,1.59747844,2451.6,2451.2,3.91863466]
[1730820026345,2.66246407,2452.0,2451.3,3.2078]
[1730820026346,0.40802,2451.5,2451.3,3.2078]
[1730820026649,1.59747844,2451.8,2451.3,3.2078]
[1730820026848,1.59747844,2451.8,2451.2,3.91863466]
[1730820026849,0.40808,2451.1,2451.0,3.2078]
[1730820027838,1.59747844,2451.3,2451.0,3.2078]
[1730820028043,0.40808,2451.1,2451.0,3.2078]
[1730820028449,0.40814,2450.8,2450.6,3.91863466]
[1730820028742,0.40817,2450.6,2450.3,3.91863466]
[1730820028951,3.7274497,2451.1,2450.3,3.91863466]
[1730820029246,40.8,2450.5,2450.3,3.91863466]
[1730820029649,41.20819,2450.5,2450.3,3.91863466]
[1730820030251,0.40817,2450.6,2450.3,3.91863466]
[1730820030441,1.59747844,2450.8,2450.3,3.91863466]
[1730820030751,0.40823,2450.2,2450.1,3.2078]
[1730820031143,7.2894,2450.2,2449.2,3.91863466]
[1730820031342,0.40835,2449.5,2449.2,4.32702466]
[1730820031647,0.40835,2449.5,2449.2,3.91863466]
[1730820031844,0.40836,2449.4,2449.2,3.91863466]
[1730820032044,6.76123863,2449.9,2449.2,3.91863466]
[1730820032244,0.40835,2449.5,2449.2,4.32702466]
[1730820032444,0.40837,2449.4,2449.2,3.91863466]
[1730820032642,5.9786,2449.9,2449.2,3.91863466]
[1730820033145,5.9786,2449.9,2449.1,3.2078]
[1730820033146,2.7708,2449.9,2449.5,3.91863466]
[1730820033350,0.40827,2450.0,2449.6,0.40831]
[1730820033542,0.40827,2450.0,2449.6,0.40832]
[1730820033737,0.40827,2450.0,2449.5,7.12643466]
[1730820033738,0.4083,2449.8,2449.5,7.53477466]
[1730820033941,0.4083,2449.8,2449.5,7.12643466]
[1730820034445,43.4601,2450.1,2449.5,7.12643466]
[1730820035046,0.40828,2449.9,2449.5,7.53477466]
[1730820035754,0.4083,2449.8,2449.5,7.12643466]
[1730820036043,2.6601,2450.1,2449.7,3.91863466]
[1730820036248,2.6601,2450.1,2449.8,3.2078]
[1730820036249,0.40828,2449.9,2449.8,3.2078]
[1730820036946,43.4601,2450.1,2449.8,3.2078]
[1730820037141,0.40828,2449.9,2449.8,3.2078]
[1730820037348,0.40832,2449.7,2449.5,7.12643466]
[1730820037641,0.40829,2449.9,2449.5,7.12643466]
[1730820038046,0.40831,2449.7,2449.5,7.12643466]
[1730820038247,2.6601,2450.1,2449.5,7.12643466]
[1730820038248,0.40833,2449.6,2449.5,7.12643466]
[1730820038949,0.40833,2449.6,2449.2,0.40839]
[1730820038950,0.40838,2449.3,2449.2,3.2078]
[1730820039161,0.40845,2448.9,2448.8,3.2078]
[1730820039452,0.40845,2448.9,2448.4,3.2078]
[1730820039453,0.4085,2448.6,2448.4,3.2078]
[1730820039657,0.40849,2448.6,2448.5,0.4075]
[1730820039842,40.8,2448.6,2448.5,4.32613466]
[1730820040151,3.2078,2449.7,2448.6,2.04248]
[1730820040346,3.2078,2449.7,2448.3,2.619]
[1730820040347,3.2078,2450.1,2449.4,3.91863466]
[1730820040542,3.2078,2450.1,2449.6,3.2078]
[1730820040852,0.40827,2450.0,2449.6,7.53475466]
[1730820041050,0.40829,2449.9,2449.6,7.12643466]
[1730820041246,0.40827,2450.0,2449.6,7.53475466]
[1730820041742,0.40827,2450.0,2449.7,0.40831]
[1730820041945,0.40827,2450.0,2449.6,7.12643466]
[1730820041946,5.3785,2450.2,2449.6,7.53475466]
[1730820042147,0.40827,2450.0,2449.6,3.2078]
[1730820042351,0.40827,2450.0,2449.7,0.4083]
[1730820042548,0.40825,2450.1,2449.7,0.4083]
[1730820042750,5.3785,2450.2,2449.7,0.4083]
[1730820042751,0.40826,2450.0,2449.7,0.4083]
[1730820042956,40.8,2450.5,2449.6,3.2078]
[1730820043158,0.40824,2450.1,2449.8,0.40829]
[1730820043450,2.5999,2450.4,2450.0,0.40825]
[1730820043666,2.5999,2450.4,2449.6,7.12643466]
[1730820043857,0.40826,2450.1,2449.6,7.12643466]
[1730820044051,2.5999,2450.4,2449.6,7.12643466]
[1730820044258,0.40825,2450.1,2449.8,0.40828]
[1730820044456,2.5999,2450.4,2449.6,7.12643466]
[1730820044653,0.40821,2450.3,2449.8,0.40828]
[1730820044853,0.40825,2450.1,2449.8,0.40829]
[1730820045353,3.0081,2450.4,2450.1,0.40824]
[1730820045754,2.5999,2450.4,2450.1,0.40824]
[1730820046061,0.40824,2450.2,2449.9,3.61606]
[1730820046256,2.5999,2450.4,2449.9,3.2078]
[1730820046461,0.40826,2450.0,2449.9,3.2078]
[1730820046660,0.40832,2449.7,2449.5,0.40834]
[1730820046863,1.02057,2450.2,2449.3,3.2078]
[1730820046864,0.40836,2449.5,2449.3,3.2078]
[1730820047056,0.40836,2449.5,2449.2,0.40838]
[1730820047057,1.0207,2449.9,2449.1,3.91863466]
[1730820047257,1.0207,2449.9,2449.0,3.2078]
[1730820047258,3.2078,2449.7,2449.0,3.2078]
[1730820047454,0.40843,2449.0,2448.8,3.91863466]
[1730820047652,40.8,2449.0,2448.9,0.40844]
[1730820047854,0.40839,2449.3,2449.0,0.40842]
[1730820048060,2.7982,2449.6,2448.8,3.91863466]
[1730820048654,0.40838,2449.3,2449.0,0.40842]
[1730820048854,0.40838,2449.3,2448.8,3.91863466]
[1730820049062,0.40841,2449.2,2448.9,0.40844]
[1730820049355,40.8,2449.5,2448.8,3.91863466]
[1730820049556,40.8,2449.5,2449.1,0.4084]
[1730820049765,40.8,2449.5,2448.9,0.40843]
[1730820050058,0.4084,2449.2,2448.9,0.40843]
[1730820050360,40.8,2449.5,2448.9,0.40843]
[1730820050361,0.40841,2449.1,2448.9,0.40843]
[1730820050553,40.8,2449.5,2448.8,3.91863466]
[1730820050759,0.40841,2449.2,2449.1,3.2078]
[1730820050964,0.40839,2449.3,2448.8,7.12643466]
[1730820051161,0.40839,2449.3,2449.1,0.40841]
[1730820051553,0.40841,2449.1,2448.9,0.40843]
[1730820051758,0.40843,2449.0,2448.8,3.61625]
[1730820052055,0.40839,2449.2,2448.8,3.2078]
[1730820052256,0.40839,2449.2,2449.0,0.40842]
[1730820052760,0.4084,2449.2,2449.0,0.40842]
[1730820053262,0.40838,2449.3,2449.1,0.40841]
[1730820053465,40.8,2449.5,2448.8,3.2078]
[1730820053665,0.4084,2449.2,2449.0,0.40842]
[1730820053963,0.4084,2449.2,2448.8,3.2078]
[1730820053964,40.8,2449.5,2448.8,3.2078]
[1730820054163,0.4084,2449.2,2449.0,0.40842]
[1730820054660,6.96382,2449.9,2449.0,4.0832]
[1730820054865,6.96382,2449.9,2449.1,0.4084]
[1730820054866,0.40838,2449.3,2449.1,0.4084]
[1730820055365,3.2078,2449.6,2448.8,3.2078]
[1730820055761,4.22863,2449.6,2448.8,3.2078]
[1730820055955,3.2078,2449.6,2448.8,3.2078]
[1730820056263,0.40835,2449.5,2449.3,0.40836]
[1730820056463,0.40835,2449.5,2449.1,3.2078]
[1730820056464,0.40839,2449.3,2449.1,6.2801]
[1730820056765,40.8,2449.7,2448.8,3.2078]
[1730820056965,0.40838,2449.3,2449.1,0.4084]
[1730820057165,40.8,2449.7,2448.8,3.2078]
[1730820057166,0.40839,2449.2,2448.8,3.2078]
[1730820057365,40.8,2449.7,2449.2,0.40839]
[1730820057668,40.8,2449.7,2449.1,3.2078]
[1730820058268,2.5925,2449.8,2449.4,3.2078]
[1730820058767,0.40834,2449.5,2449.4,3.2078]
[1730820059069,43.3925,2449.8,2449.4,3.2078]
[1730820059263,0.40834,2449.5,2449.4,3.2078]
[1730820059967,43.3925,2449.8,2449.4,3.2078]
[1730820059968,0.40832,2449.7,2449.4,3.2078]
[1730820060157,43.3925,2449.8,2449.4,3.2078]
[1730820060158,43.3925,2449.8,2449.5,0.40833]
[1730820060358,0.40834,2449.5,2449.4,3.2078]
[1730820060666,1.02086,2449.6,2448.9,0.40843]
[1730820060972,0.40841,2449.2,2448.9,0.40843]
[1730820061366,1.02078,2449.7,2449.0,3.2078]
[1730820061569,0.40843,2449.0,2448.8,4.32708466]
[1730820061766,46.6003,2449.8,2448.8,3.91863466]
[1730820061967,0.40839,2449.3,2449.0,0.40842]
[1730820062264,0.40842,2449.1,2448.9,0.40844]
[1730820062469,46.6003,2449.8,2448.8,3.91863466]
[1730820062665,0.40843,2449.0,2448.8,0.40845]
[1730820062871,1.02078,2449.7,2448.7,5.8717]
[1730820062872,4.22869,2449.5,2448.7,5.8717]
[1730820063070,0.40842,2449.1,2448.8,0.40845]
[1730820063574,4.22869,2449.5,2448.7,5.8717]
[1730820063575,3.2078,2449.5,2448.7,5.8717]
[1730820063763,1.02091,2449.4,2448.7,6.28017]
[1730820063963,0.40845,2448.9,2448.7,5.8717]
[1730820064176,0.40854,2448.4,2448.1,2.5737]
[1730820064468,0.4085,2448.6,2448.3,0.40854]
[1730820064669,5.297,2448.8,2448.3,3.2078]
[1730820064863,0.40849,2448.7,2448.5,3.91863466]
[1730820065066,8.5048,2449.3,2448.5,3.91863466]
[1730820065263,0.40845,2448.9,2448.6,0.40849]
[1730820065470,0.40847,2448.8,2448.5,4.32713466]
[1730820065676,0.40845,2448.9,2448.6,0.40849]
[1730820065859,40.8,2449.2,2448.6,3.2078]
[1730820066064,0.40841,2449.1,2448.8,0.40845]
[1730820066469,0.40845,2448.9,2448.6,3.61629]
[1730820067272,3.2078,2449.0,2448.1,3.2078]
[1730820067570,0.40855,2448.3,2448.1,3.2078]
[1730820067771,0.40853,2448.4,2448.1,3.61636]
[1730820067972,0.40852,2448.5,2448.2,0.40855]
[1730820068169,0.40853,2448.4,2448.1,3.61637]
[1730820068372,0.40849,2448.6,2448.1,3.2078]
[1730820068569,0.40853,2448.4,2448.1,3.61637]
[1730820068772,3.2078,2448.6,2448.1,3.2078]
[1730820068979,0.40856,2448.2,2448.1,3.2078]
[1730820069281,2.5836,2448.6,2448.1,3.2078]
[1730820069682,0.40853,2448.4,2448.2,0.40855]
[1730820069873,0.40853,2448.4,2448.1,3.2078]
[1730820069874,2.703,2448.7,2448.4,0.40852]
[1730820070177,0.4085,2448.6,2448.4,3.61632]
[1730820070781,2.703,2448.7,2448.4,3.2078]
[1730820070782,0.40851,2448.5,2448.4,3.2078]
[1730820071181,0.4085,2448.6,2448.4,7.70032]
[1730820071370,0.4085,2448.6,2448.4,3.61632]
[1730820071577,0.40851,2448.6,2448.4,3.2078]
[1730820071776,0.40851,2448.5,2448.4,3.2078]
[1730820072081,1.02118,2448.8,2448.1,3.2078]
[1730820072273,0.40856,2448.2,2448.1,3.2078]